bitfinex-derivatives/quotes_SOLF0:USTF0_20250113
["timestamp","ask_amount","ask_price","bid_price","bid_amount"]
[1736754324498,8.2478889,183.05,182.99,10.9816889]
[1736754326003,8.2478889,183.05,182.99,2.7338]
[1736754326301,2.7336,183.01,182.98,2.734]
[1736754329800,2.7337,183.0,182.97,2.7341]
[1736754330797,8.2478889,182.99,182.94,1.541]
[1736754331101,8.2478889,182.95,182.88,8.2478889]
[1736754331304,2.7348,182.93,182.89,2.7353]
[1736754331495,8.2478889,182.93,182.87,8.2478889]
[1736754331998,2.7352,182.91,182.87,10.9834889]
[1736754336407,10.9827889,182.93,182.88,2.7354]
[1736754336607,10.9827889,182.93,182.87,8.2478889]
[1736754336608,8.2478889,182.93,182.87,8.2478889]
[1736754336805,8.2478889,182.93,182.85,3.2777]
[1736754337005,8.2478889,182.93,182.87,2.7356]
[1736754337606,8.2478889,182.91,182.85,2.7358]
[1736754338810,8.2478889,182.91,182.84,8.2478889]
[1736754338811,8.2478889,182.91,182.84,10.9839889]
[1736754339204,198.835,182.98,182.84,10.9839889]
[1736754339205,10.9833889,182.89,182.84,10.9839889]
[1736754339709,194.0,182.97,182.88,8.2478889]
[1736754339915,2.7348,182.93,182.88,8.2478889]
[1736754340210,8.2478889,182.94,182.87,2.7355]
[1736754340609,2.7352,182.91,182.87,2.7355]
[1736754340810,8.2478889,182.92,182.86,10.9836889]
[1736754341204,8.2478889,182.92,182.86,8.2478889]
[1736754341510,8.2478889,182.92,182.83,1.557]
[1736754341810,8.2478889,182.9,182.84,8.2478889]
[1736754343108,2.7355,182.88,182.84,10.9838889]
[1736754344913,8.2478889,182.9,182.84,10.9838889]
[1736754345103,2.7356,182.87,182.83,2.7362]
[1736754346007,2.7356,182.87,182.79,1.6006]
[1736754346008,8.2478889,182.86,182.79,1.6006]
[1736754346207,8.2478889,182.84,182.79,1.6006]
[1736754347018,8.2478889,182.88,182.8,8.2478889]
[1736754347217,8.2478889,182.88,182.82,8.2478889]
[1736754348420,2.7357,182.87,182.83,2.7362]
[1736754349420,8.2478889,182.88,182.79,1.6006]
[1736754349619,2.7358,182.86,182.82,2.7364]
[1736754350016,8.2478889,182.86,182.8,8.2478889]
[1736754350314,2.736,182.85,182.81,2.7365]
[1736754350519,8.2478889,182.86,182.81,2.7365]
[1736754350712,2.736,182.85,182.81,2.7365]
[1736754353419,8.2478889,182.84,182.79,2.7368]
[1736754354624,8.2478889,182.82,182.79,2.7368]
[1736754355028,8.2478889,182.84,182.79,2.7368]
[1736754355226,2.7364,182.82,182.73,1.6335]
[1736754355425,8.2478889,182.82,182.75,8.2478889]
[1736754356025,2.7367,182.8,182.76,2.7373]
[1736754356226,8.2478889,182.8,182.73,1.6335]
[1736754356426,8.2478889,182.78,182.73,9.8813889]
[1736754357220,8.2478889,182.78,182.68,3.2299]
[1736754357428,8.2478889,182.76,182.7,8.2478889]
[1736754357625,10.9852889,182.76,182.72,2.7378]
[1736754358017,2.7374,182.76,182.72,2.7378]
[1736754359125,10.9852889,182.76,182.72,2.7378]
[1736754360536,2.7367,182.8,182.76,2.7372]
[1736754361037,10.9845889,182.8,182.76,2.7372]
[1736754362838,3.3093,182.83,182.74,8.2478889]
[1736754363038,8.2478889,182.81,182.74,8.2478889]
[1736754363337,8.2478889,182.79,182.74,8.2478889]
[1736754363637,8.2478889,182.79,182.76,2.7372]
[1736754364435,8.2478889,182.77,182.68,3.2299]
[1736754364630,8.2478889,182.75,182.7,8.2478889]
[1736754365039,8.2478889,182.77,182.73,2.7376]
[1736754365833,10.9850889,182.77,182.73,2.7376]
[1736754367141,8.2478889,182.75,182.73,2.7376]
[1736754367335,10.9853889,182.75,182.71,2.738]
[1736754367534,8.2478889,182.75,182.69,8.2478889]
[1736754368939,8.2478889,182.73,182.68,3.2299]
[1736754369139,10.9858889,182.73,182.7,2.7383]
[1736754369540,8.2478889,182.71,182.57,10.7208]
[1736754369840,8.2478889,182.71,182.68,2.7387]
[1736754370432,8.2478889,182.69,182.67,2.7389]
[1736754370637,8.2478889,182.69,182.63,8.2478889]
[1736754371136,8.2478889,182.69,182.67,2.7389]
[1736754372341,8.2478889,182.69,182.65,2.7391]
[1736754372543,8.2478889,182.69,182.63,8.2478889]
[1736754372838,8.2478889,182.69,182.65,2.7391]
[1736754373637,8.2478889,182.67,182.58,118.62773415]
[1736754373943,8.2478889,182.65,182.58,110.37984525]
[1736754374444,10.9871889,182.65,182.61,2.7398]
[1736754375144,2.7394,182.64,182.6,2.7399]
[1736754376042,2.7395,182.63,182.59,2.7401]
[1736754376237,8.2478889,182.63,182.55,31.41737565]
[1736754376446,8.2478889,182.63,182.55,39.66526455]
[1736754377142,2.7397,182.62,182.58,2.7402]
[1736754377444,8.2478889,182.61,182.58,2.7402]
[1736754377635,8.2478889,182.61,182.57,2.7404]
[1736754377835,8.2478889,182.61,182.55,39.66526455]
[1736754377836,10.9877889,182.61,182.55,31.41737565]
[1736754378047,10.9877889,182.61,182.55,8.2478889]
[1736754378548,10.9877889,182.61,182.56,2.7404]
[1736754378742,8.2478889,182.61,182.55,8.2478889]
[1736754378940,8.2478889,182.63,182.59,2.74]
[1736754379140,8.2478889,182.63,182.52,4.7248]
[1736754379342,8.2478889,182.63,182.56,8.2478889]
[1736754379748,8.2478889,182.61,182.56,8.2478889]
[1736754380141,8.2478889,182.61,182.52,4.7248]
[1736754380444,8.2478889,182.61,182.54,8.2478889]
[1736754381246,8.2478889,182.63,182.56,8.2478889]
[1736754381443,10.6925,182.68,182.6,8.2478889]
[1736754381644,8.2478889,182.66,182.61,2.7397]
[1736754382047,8.2478889,182.64,182.58,8.2478889]
[1736754382241,2.7395,182.63,182.52,4.7248]
[1736754382550,8.2478889,182.62,182.56,8.2478889]
[1736754383446,8.2478889,182.62,182.58,2.7401]
[1736754383647,10.9872889,182.64,182.58,8.2478889]
[1736754383837,8.2478889,182.64,182.58,8.2478889]
[1736754384041,8.2478889,182.64,182.61,2.7397]
[1736754384649,8.2478889,182.64,182.59,2.74]
[1736754384852,10.6925,182.68,182.6,8.2478889]
[1736754385150,8.2478889,182.67,182.6,8.2478889]
[1736754385348,8.2478889,182.67,182.63,2.7394]
[1736754387446,8.2478889,182.68,182.62,8.2478889]
[1736754387749,5.78,182.72,182.64,8.2478889]
[1736754388049,8.2478889,182.69,182.64,8.2478889]
[1736754388248,8.2478889,182.69,182.62,8.2478889]
[1736754389146,8.2478889,182.69,182.63,2.7394]
[1736754389344,8.2478889,182.67,182.63,2.7394]
[1736754389950,8.2478889,182.67,182.62,8.2478889]
[1736754390151,8.2478889,182.65,182.61,2.7397]
[1736754390443,8.2478889,182.65,182.58,8.2478889]
[1736754390643,10.9874889,182.63,182.58,10.9879889]
[1736754390853,8.2478889,182.61,182.52,4.7248]
[1736754391052,10.9877889,182.61,182.56,2.7404]
[1736754391346,10.9877889,182.61,182.55,8.2478889]
[1736754392150,10.9877889,182.61,182.57,2.7403]
[1736754393449,2.7399,182.61,182.57,2.7403]
[1736754396747,2.7399,182.61,182.52,17.69638152]
[1736754396954,12.97158152,182.68,182.55,12.97158152]
[1736754397142,12.97158152,182.68,182.58,12.97158152]
[1736754397345,12.97158152,182.71,182.59,1.6164]
[1736754397549,12.61286229,182.73,182.61,12.97158152]
[1736754397948,12.61286229,182.73,182.64,12.97158152]
[1736754398350,11.03396229,182.73,182.64,12.97158152]
[1736754398551,2.7382,182.72,182.68,2.7387]
[1736754399555,7.82716229,182.73,182.64,12.97158152]
[1736754399756,2.738,182.74,182.64,12.97158152]
[1736754400055,2.7382,182.72,182.64,12.97158152]
[1736754400254,12.97158152,182.75,182.64,12.97158152]
[1736754400652,2.7383,182.72,182.64,12.97158152]
[1736754401352,2.7383,182.72,182.67,2.7389]
[1736754401954,2.7381,182.73,182.64,12.97158152]
[1736754403458,2.7381,182.73,182.69,2.7385]
[1736754407956,12.97158152,182.72,182.64,2.7392]
[1736754408460,12.97158152,182.72,182.6,12.97158152]
[1736754408761,12.97158152,182.72,182.65,2.7392]
[1736754410458,12.97158152,182.72,182.6,12.97158152]
[1736754410663,12.97158152,182.75,182.63,12.97158152]
[1736754411057,12.97158152,182.75,182.66,12.97158152]
[1736754411359,2.7382,182.72,182.69,2.7386]
[1736754411562,2.7382,182.72,182.66,12.97158152]
[1736754412055,2.7382,182.72,182.68,2.7386]
[1736754412451,2.7382,182.72,182.67,1.7028]
[1736754412657,2.7382,182.72,182.69,2.7386]
[1736754413362,2.7378,182.75,182.71,2.7383]
[1736754415055,2.7376,182.76,182.72,2.7381]
[1736754415461,298.00980294,182.81,182.69,12.97158152]
[1736754415462,104.00980294,182.81,182.69,12.97158152]
[1736754417164,2.7373,182.78,182.74,2.7377]
[1736754417857,104.00980294,182.81,182.74,2.7377]
[1736754418052,2.7372,182.79,182.74,2.7377]
[1736754418257,104.00980294,182.81,182.74,2.7377]
[1736754418453,104.00980294,182.81,182.69,12.97158152]
[1736754418654,12.97158152,182.78,182.68,3.3449]
[1736754418959,12.97158152,182.75,182.68,1.644]
[1736754419162,12.97158152,182.75,182.63,14.63428152]
[1736754419457,12.97158152,182.72,182.63,1.6627]
[1736754419661,2.7389,182.67,182.63,4.4022]
[1736754420061,2.7385,182.71,182.66,2.739]
[1736754420263,5.78,182.74,182.63,14.63428152]
[1736754420967,12.97158152,182.75,182.63,14.63428152]
[1736754421566,2.7381,182.73,182.68,2.7386]
[1736754425067,12.97158152,182.75,182.68,2.7386]
[1736754425272,2.7382,182.72,182.68,2.7386]
[1736754425574,12.97158152,182.75,182.67,2.7389]
[1736754426473,2.7383,182.72,182.67,2.7389]
[1736754428574,12.97158152,182.75,182.67,2.7389]
[1736754428776,2.7383,182.71,182.67,2.7389]
[1736754429277,12.97158152,182.75,182.65,2.7392]
[1736754429476,2.7387,182.69,182.65,2.7392]
[1736754430680,2.739,182.67,182.61,12.97158152]
[1736754431377,12.97158152,182.72,182.61,12.97158152]
[1736754432072,2.7386,182.69,182.65,2.7391]
[1736754432771,2.739,182.67,182.61,12.97158152]
[1736754433381,2.7388,182.68,182.64,2.7393]
[1736754433677,12.97158152,182.75,182.61,12.97158152]
[1736754433878,2.7383,182.71,182.65,2.7391]
[1736754434075,12.97158152,182.75,182.61,12.97158152]
[1736754434672,12.97158152,182.75,182.66,2.7389]
[1736754435168,12.97158152,182.75,182.67,2.7389]
[1736754436576,1.5823,182.76,182.65,12.97158152]
[1736754436776,1.5823,182.76,182.66,3.132]
[1736754437170,2.7383,182.72,182.68,2.7387]
[1736754437676,2.7381,182.73,182.69,2.7385]
[1736754437870,1.5823,182.76,182.69,2.7385]
[1736754438374,2.7379,182.74,182.69,2.7385]
[1736754438583,1.5823,182.76,182.69,2.7385]
[1736754439181,2.7381,182.73,182.69,2.7385]
[1736754439484,1.5823,182.76,182.69,2.7385]
[1736754439783,2.7383,182.72,182.69,2.7385]
[1736754439983,2.7383,182.72,182.68,2.7387]
[1736754441782,2.7383,182.71,182.68,2.7387]
[1736754442977,8.29025033,182.74,182.67,8.29025033]
[1736754443178,2.7382,182.72,182.69,2.7386]
[1736754443686,2.7382,182.72,182.67,8.29025033]
[1736754443879,2.7382,182.72,182.68,2.7387]
[1736754444079,2.738,182.73,182.69,8.29025033]
[1736754444285,91.03822142,182.78,182.69,8.29025033]
[1736754444586,91.03822142,182.78,182.75,8.29025033]
[1736754444989,91.03822142,182.78,182.75,11.02795033]
[1736754445386,8.29025033,182.8,182.75,11.02795033]
[1736754445788,8.29025033,182.8,182.75,8.29025033]
[1736754446587,8.29025033,182.82,182.75,11.02785033]
[1736754447087,2.7372,182.79,182.75,11.02785033]
[1736754447282,8.10778946,182.83,182.75,2.7376]
[1736754447678,8.10778946,182.83,182.72,12.94324664]
[1736754448590,26.04911141,182.83,182.72,12.94324664]
[1736754448983,17.94132195,182.83,182.72,12.94324664]
[1736754449184,2.7375,182.77,182.73,2.738]
[1736754449582,2.7375,182.77,182.72,12.94324664]
[1736754449583,2.7375,182.77,182.74,2.7378]
[1736754450489,2.7375,182.77,182.73,2.738]
[1736754450690,2.7376,182.76,182.69,12.94324664]
[1736754450891,12.94324664,182.81,182.7,2.7384]
[1736754451090,5.78,182.84,182.67,1.5822]
[1736754451091,12.94324664,182.78,182.67,1.5822]
[1736754451289,3.1293,182.77,182.66,16.07524664]
[1736754451585,4.767,182.77,182.66,16.07524664]
[1736754453293,2.7383,182.72,182.68,2.7387]
[1736754453991,2.7383,182.72,182.69,2.7386]
[1736754455091,4.767,182.77,182.66,16.07524664]
[1736754455293,2.7379,182.74,182.71,2.7383]
[1736754455493,3.1293,182.77,182.66,16.07524664]
[1736754457293,92.70682142,182.82,182.72,12.94324664]
[1736754457493,91.03822142,182.82,182.72,12.94324664]
[1736754457794,2.7371,182.8,182.73,1.5574]
[1736754458394,2.7369,182.81,182.77,2.7373]
[1736754459098,2.7365,182.83,182.78,2.7372]
[1736754459296,2.7365,182.83,182.75,12.94324664]
[1736754459497,92.64612142,182.86,182.75,12.94324664]
[1736754459696,91.03822142,182.86,182.78,12.94324664]
[1736754460198,92.67282142,182.89,182.78,12.94324664]
[1736754460699,2.7362,182.86,182.81,2.7368]
[1736754461293,123.54857373,182.91,182.81,12.94324664]
[1736754461594,2.7359,182.88,182.83,2.7365]
[1736754462599,2.7356,182.89,182.84,2.7363]
[1736754463001,2.7356,182.89,182.81,12.94324664]
[1736754463299,2.7358,182.88,182.81,12.94324664]
[1736754463500,14.59674664,182.91,182.81,12.94324664]
[1736754463698,12.94324664,182.88,182.79,2.7371]
[1736754463896,12.94324664,182.88,182.75,12.94324664]
[1736754464504,2.7368,182.82,182.77,2.7373]
[1736754464900,12.94324664,182.88,182.77,2.7373]
[1736754465100,2.7368,182.81,182.77,2.7373]
[1736754465701,2.7373,182.78,182.73,1.5574]
[1736754466906,12.94324664,182.82,182.73,1.5574]
[1736754467104,2.7371,182.8,182.75,2.7377]
[1736754467702,2.7371,182.79,182.75,2.7377]
[1736754468503,12.94324664,182.82,182.73,1.5574]
[1736754468807,2.7373,182.78,182.74,2.7378]
[1736754470808,2.7371,182.79,182.75,2.7377]
[1736754472908,1.6998,182.83,182.72,12.94324664]
[1736754473209,2.7373,182.78,182.74,2.7378]
[1736754473409,12.94324664,182.82,182.72,12.94324664]
[1736754473606,2.7374,182.77,182.73,2.738]
[1736754475506,2.7372,182.79,182.76,2.7376]
[1736754476214,1.6998,182.83,182.76,2.7376]
[1736754476412,2.737,182.8,182.76,2.7376]
[1736754478716,1.704,182.84,182.72,12.94324664]
[1736754479019,12.94324664,182.79,182.69,14.52754664]
[1736754479314,2.7381,182.73,182.69,4.3229]
[1736754479510,2.7381,182.73,182.69,2.7386]
[1736754480912,2.7379,182.74,182.69,2.7386]
[1736754481720,3.2284,182.78,182.69,2.7386]
[1736754481721,2.7381,182.73,182.69,2.7386]
[1736754481921,2.7381,182.73,182.66,12.94324664]
[1736754482216,2.7379,182.74,182.7,2.7384]
[1736754482519,3.2284,182.78,182.68,12.94324664]
[1736754482921,12.94324664,182.82,182.71,12.94324664]
[1736754483125,21.81454664,182.82,182.71,12.94324664]
[1736754483418,21.81454664,182.82,182.72,2.7381]
[1736754483816,2.737,182.8,182.74,2.7378]
[1736754484015,16.03454664,182.82,182.71,12.94324664]
[1736754484920,2.7372,182.79,182.71,12.94324664]
[1736754485424,2.7374,182.77,182.73,2.738]
[1736754486024,16.03454664,182.82,182.73,2.738]
[1736754486922,2.7371,182.8,182.73,2.738]
[1736754487124,16.03454664,182.82,182.73,2.738]
[1736754487324,16.03454664,182.82,182.68,12.94324664]
[1736754487627,2.7372,182.79,182.75,2.7377]
[1736754488419,16.03454664,182.82,182.75,2.7377]
[1736754488623,16.03454664,182.82,182.71,12.94324664]
[1736754488824,16.03454664,182.82,182.76,2.7375]
[1736754489127,2.7371,182.79,182.76,2.7375]
[1736754489628,3.0913,182.82,182.71,12.94324664]
[1736754489928,1.704,182.84,182.74,12.94324664]
[1736754490123,1.6443,182.83,182.72,1.6749]
[1736754490323,1.6443,182.83,182.75,2.7377]
[1736754490626,1.6443,182.83,182.71,12.94324664]
[1736754490627,12.94324664,182.82,182.71,12.94324664]
[1736754491530,2.7375,182.77,182.73,2.738]
[1736754491731,12.94324664,182.82,182.68,12.94324664]
[1736754492024,12.94324664,182.79,182.67,95.69055975]
[1736754492231,12.94324664,182.76,182.67,95.69055975]
[1736754492626,5.76,182.75,182.65,1.6749]
[1736754492832,12.94324664,182.73,182.62,22.98590172]
[1736754493526,2.7387,182.69,182.62,22.98590172]
[1736754493731,2.7387,182.69,182.63,1.6125]
[1736754494033,2.739,182.67,182.63,2.7395]
[1736754495624,12.94324664,182.7,182.59,1.578]
[1736754495827,12.94324664,182.7,182.57,3.1833]
[1736754496333,2.7391,182.66,182.61,2.7397]
[1736754496831,2.7392,182.65,182.61,2.7397]
[1736754497032,12.94324664,182.7,182.59,12.94324664]
[1736754497225,12.94324664,182.7,182.63,2.7394]
[1736754497427,12.94324664,182.7,182.59,12.94324664]
[1736754497735,12.94324664,182.7,182.62,2.7396]
[1736754498034,2.7391,182.67,182.62,2.7396]
[1736754500134,18.72324664,182.67,182.56,12.94324664]
[1736754500335,3.273,182.66,182.53,14.56254664]
[1736754500738,2.7396,182.63,182.58,2.7402]
[1736754501128,12.94324664,182.64,182.53,14.56254664]
[1736754501431,2.7401,182.6,182.55,2.7406]
[1736754502935,2.7401,182.6,182.56,2.7405]
[1736754504729,1.5694,182.65,182.53,14.56254664]
[1736754505728,1.5694,182.65,182.56,12.94324664]
[1736754506638,4.3087,182.65,182.6,2.7399]
[1736754507234,4.3149,182.66,182.62,2.7396]
[1736754507434,18.72324664,182.7,182.59,12.94324664]
[1736754507635,12.94324664,182.7,182.59,12.94324664]
[1736754507837,2.7389,182.68,182.63,2.7394]
[1736754508243,12.94324664,182.7,182.59,12.94324664]
[1736754508743,2.7391,182.66,182.62,2.7396]
[1736754510030,12.94324664,182.7,182.59,12.94324664]
[1736754510231,12.94324664,182.7,182.61,2.7398]
[1736754510440,12.94324664,182.7,182.59,12.94324664]
[1736754511639,2.739,182.67,182.63,2.7395]
[1736754511936,10.6961,182.72,182.59,12.94324664]
[1736754512142,10.6961,182.72,182.6,1.6663]
[1736754512344,2.7389,182.68,182.6,1.6663]
[1736754512941,2.7389,182.68,182.64,2.7393]
[1736754514546,2.7387,182.69,182.65,2.7392]
[1736754515239,2.7383,182.71,182.62,12.94324664]
[1736754515645,2.7383,182.71,182.68,2.7388]
[1736754515841,2.7382,182.72,182.68,2.7388]
[1736754516645,79.31190007,182.73,182.62,12.94324664]
[1736754516842,2.7384,182.71,182.67,2.7389]
[1736754517041,2.7384,182.71,182.62,12.94324664]
[1736754518042,79.31190007,182.73,182.62,12.94324664]
[1736754518244,2.7387,182.69,182.62,12.94324664]
[1736754518943,92.25514671,182.73,182.62,12.94324664]
[1736754518944,2.7383,182.72,182.62,12.94324664]
[1736754519247,2.7383,182.72,182.68,2.7387]
[1736754520542,2.738,182.74,182.7,2.7384]
[1736754520739,12.94324664,182.79,182.68,12.94324664]
[1736754521146,12.94324664,182.79,182.72,2.7381]
[1736754521449,12.94324664,182.79,182.68,12.94324664]
[1736754522038,12.94324664,182.76,182.67,3.2375]
[1736754522250,12.94324664,182.73,182.62,9.49773056]
[1736754522544,2.7388,182.69,182.64,2.7393]
[1736754522743,2.7388,182.69,182.62,9.49773056]
[1736754523554,2.7388,182.69,182.65,2.7391]
[1736754523763,12.94324664,182.73,182.61,3.3297]
[1736754523764,12.94324664,182.7,182.61,3.3297]
[1736754524054,12.94324664,182.7,182.56,12.94324664]
[1736754524252,2.7395,182.64,182.56,12.94324664]
[1736754526160,2.7395,182.64,182.59,2.7401]
[1736754526964,2.7395,182.63,182.59,2.7401]
[1736754527166,12.94324664,182.67,182.59,2.7401]
[1736754527563,2.7395,182.63,182.59,2.7401]
[1736754528562,2.7394,182.64,182.59,2.7401]
[1736754529163,2.7394,182.64,182.56,12.94324664]
[1736754529366,12.94324664,182.67,182.56,12.94324664]
[1736754529566,18.70324664,182.7,182.59,12.94324664]
[1736754530264,12.94324664,182.67,182.54,4.9384]
[1736754530458,23.0,182.6,182.47,7.54538376]
[1736754530658,12.94324664,182.55,182.48,30.18153505]
[1736754531663,2.7408,182.55,182.44,14.55704664]
[1736754532160,2.7408,182.55,182.49,2.7415]
[1736754532365,17.93804664,182.58,182.44,14.55704664]
[1736754532563,16.33804664,182.58,182.47,12.94324664]
[1736754533459,5.76,182.59,182.47,12.94324664]
[1736754533660,5.76,182.59,182.5,12.94324664]
[1736754533958,12.94324664,182.61,182.53,2.741]
[1736754534165,12.94324664,182.61,182.5,12.94324664]
[1736754534566,2.7403,182.59,182.53,2.741]
[1736754534767,12.94324664,182.61,182.53,2.741]
[1736754535463,12.94324664,182.61,182.5,12.94324664]
[1736754535663,2.7401,182.6,182.55,2.7407]
[1736754536064,2.7398,182.62,182.56,2.7405]
[1736754536270,18.70324664,182.64,182.56,2.7405]
[1736754536466,12.94324664,182.64,182.53,12.94324664]
[1736754536670,2.7397,182.62,182.57,2.7403]
[1736754536966,12.94324664,182.64,182.53,12.94324664]
[1736754537169,12.94324664,182.61,182.52,1.5392]
[1736754537369,2.7404,182.58,182.53,2.741]
[1736754537564,12.94324664,182.61,182.52,1.5392]
[1736754539467,12.94324664,182.64,182.52,1.5392]
[1736754539869,2.7399,182.61,182.55,2.7407]
[1736754540267,12.94324664,182.64,182.53,12.94324664]
[1736754542067,2.7398,182.62,182.57,2.7403]
[1736754542771,12.94324664,182.64,182.57,2.7403]
[1736754542963,2.7398,182.61,182.57,2.7403]
[1736754543168,12.94324664,182.61,182.52,1.5392]
[1736754543366,2.7404,182.57,182.52,1.5392]
[1736754543973,12.94324664,182.61,182.52,1.5392]
[1736754544175,2.7406,182.56,182.52,1.5392]
[1736754544372,12.94324664,182.58,182.44,5.78]
[1736754544373,12.94324664,182.58,182.45,1.7002]
[1736754544569,12.94324664,182.58,182.49,2.7415]
[1736754544570,2.7408,182.55,182.49,2.7415]
[1736754544771,12.94324664,182.55,182.45,1.7002]
[1736754544963,12.94324664,182.52,182.45,1.7002]
[1736754545477,2.7416,182.49,182.44,4.284]
[1736754545962,2.742,182.47,182.44,1.5417]
[1736754546163,2.742,182.47,182.42,2.7425]
[1736754547371,20.78940612,182.5,182.39,15.6416973]
[1736754547575,26.56940612,182.5,182.39,15.6416973]
[1736754547969,2.7422,182.46,182.41,2.7428]
[1736754549372,26.56940612,182.5,182.39,15.6416973]
[1736754549678,26.56940612,182.5,182.39,16.8041973]
[1736754549973,2.7421,182.46,182.39,16.8041973]
[1736754550275,1.5552,182.49,182.39,16.8041973]
[1736754550477,2.7423,182.45,182.4,2.743]
[1736754550671,1.6525,182.48,182.39,14.0611973]
[1736754551177,2.7421,182.46,182.41,2.7427]
[1736754551866,2.7421,182.46,182.39,14.0611973]
[1736754551867,1.6525,182.48,182.39,14.0611973]
[1736754552072,2.7423,182.45,182.4,2.7429]
[1736754552877,1.6525,182.48,182.4,2.7429]
[1736754554075,2.7423,182.45,182.4,2.7429]
[1736754554578,2.7423,182.45,182.41,2.7428]
[1736754554769,1.6525,182.48,182.39,14.0611973]
[1736754555274,2.7422,182.46,182.42,2.7426]
[1736754557291,1.6525,182.48,182.39,14.0611973]
[1736754557477,2.7419,182.47,182.39,14.0611973]
[1736754557979,2.7419,182.47,182.41,2.7428]
[1736754558285,2.7421,182.46,182.39,14.0611973]
[1736754558475,2.7421,182.46,182.41,2.7428]
[1736754560278,1.5552,182.49,182.41,2.7428]
[1736754560576,2.7422,182.45,182.41,2.7428]
[1736754560976,2.7428,182.42,182.39,14.0611973]
[1736754561279,20.78940612,182.47,182.36,1.5417]
[1736754561782,20.78940612,182.47,182.37,2.7434]
[1736754562180,2.7429,182.41,182.37,2.7434]
[1736754563480,2.743,182.4,182.37,2.7434]
[1736754563679,20.78940612,182.47,182.35,2.7437]
[1736754563878,20.78940612,182.47,182.33,1.5429]
[1736754564074,20.78940612,182.44,182.34,2.7438]
[1736754564381,1.5552,182.49,182.33,1.5429]
[1736754564382,20.78940612,182.47,182.33,1.5429]
[1736754564583,1.5552,182.49,182.33,1.5429]
[1736754565086,1.5552,182.49,182.33,1.46773527]
[1736754565781,2.743,182.4,182.36,2.7434]
[1736754566090,1.5552,182.49,182.33,1.46773527]
[1736754566981,2.7431,182.39,182.35,2.7437]
[1736754567377,1.5552,182.49,182.33,2.7439]
[1736754567378,2.7435,182.37,182.33,2.7439]
[1736754567875,13.00192314,182.43,182.32,99.29569173]
[1736754568885,13.00192314,182.43,182.34,2.7437]
[1736754569685,2.7433,182.39,182.35,2.7437]
[1736754572378,13.00192314,182.43,182.35,2.7437]
[1736754572583,13.00192314,182.4,182.32,2.7442]
[1736754573086,2.7437,182.36,182.32,2.7442]
[1736754573481,13.00192314,182.4,182.32,2.7442]
[1736754574986,2.7437,182.36,182.32,2.7442]
[1736754576787,2.7437,182.36,182.3,1.6958]
[1736754576988,2.7437,182.36,182.33,2.744]
[1736754577287,2.7437,182.36,182.3,1.6958]
[1736754578082,2.7437,182.36,182.32,2.7441]
[1736754581690,1.5972,182.41,182.3,1.6958]
[1736754581891,2.7435,182.37,182.33,2.7439]
[1736754582092,1.5972,182.41,182.3,1.6958]
[1736754582393,1.5972,182.41,182.32,13.00192314]
[1736754582587,2.7431,182.4,182.34,2.7438]
[1736754582788,2.7431,182.4,182.32,13.00192314]
[1736754583293,2.7432,182.39,182.35,2.7436]
[1736754583493,1.5972,182.41,182.32,13.00192314]
[1736754584197,2.7434,182.38,182.34,2.7438]
[1736754584799,2.7436,182.36,182.32,2.7441]
[1736754584990,1.5972,182.41,182.32,2.7441]
[1736754585294,13.00192314,182.39,182.32,2.7441]
[1736754586494,2.7438,182.35,182.31,2.7443]
[1736754587296,2.7436,182.36,182.32,2.7442]
[1736754587499,13.00192314,182.39,182.32,2.7442]
[1736754588095,2.7434,182.37,182.32,2.7442]
[1736754588397,12.95819957,182.39,182.32,2.7442]
[1736754588792,2.7434,182.37,182.32,2.7442]
[1736754588993,12.95819957,182.39,182.33,2.744]
[1736754589393,2.7435,182.37,182.27,14.63582314]
[1736754590197,2.7435,182.37,182.3,2.7445]
[1736754590396,2.7431,182.39,182.3,13.00192314]
[1736754590791,1.5972,182.41,182.34,2.7438]
[1736754591096,2.7433,182.38,182.34,2.7438]
[1736754592192,2.7433,182.38,182.32,2.7441]
[1736754592394,2.7433,182.38,182.3,13.00192314]
[1736754593396,2.7433,182.38,182.34,2.7438]
[1736754594292,2.7431,182.4,182.35,2.7437]
[1736754594488,13.00192314,182.45,182.33,13.00192314]